[Event "15. ročník Dobrovický rapid Tereos TTD a.s."]
[Site "Dobrovice, Czech Republic"]
[Date "2020.02.29"]
[Round "7.11"]
[White "Joukl Zdenek"]
[Black "Kopecky Jiri"]
[Result "1-0"]
[TimeControl "15m + 3s / tah"]
[WhiteElo "2022"]
[BlackElo "1927"]

1. d4 {[%clk 00:14:59]} {[%emt 00:00:06]} Nf6 {[%clk 00:15:04]} {[%emt
00:00:02]} 2. Nf3 {[%clk 00:15:00]} {[%emt 00:00:03]} g6 {[%clk 00:15:06]}
{[%emt 00:00:01]} 3. Bf4 {[%clk 00:14:53]} {[%emt 00:00:10]} d6 {[%clk
00:15:01]} {[%emt 00:00:07]} 4. Nbd2 {[%clk 00:14:52]} {[%emt 00:00:04]} Bg7
{[%clk 00:15:03]} {[%emt 00:00:02]} 5. e3 {[%clk 00:14:40]} {[%emt 00:00:15]}
Nbd7 {[%clk 00:14:58]} {[%emt 00:00:07]} 6. a4 {[%clk 00:14:32]} {[%emt
00:00:11]} a5 {[%clk 00:14:10]} {[%emt 00:00:51]} 7. Nc4 {[%clk 00:14:25]}
{[%emt 00:00:10]} b6 {[%clk 00:13:11]} {[%emt 00:01:02]} 8. h3 {[%clk
00:13:59]} {[%emt 00:00:29]} Bb7 {[%clk 00:13:00]} {[%emt 00:00:13]} 9. Be2
{[%clk 00:13:43]} {[%emt 00:00:19]} O-O {[%clk 00:12:53]} {[%emt 00:00:11]} 10.
O-O {[%clk 00:13:45]} {[%emt 00:00:01]} Re8 {[%clk 00:12:24]} {[%emt 00:00:32]}
11. Bh2 {[%clk 00:13:32]} {[%emt 00:00:15]} Bf8 {[%clk 00:10:56]} {[%emt
00:01:32]} 12. c3 {[%clk 00:13:22]} {[%emt 00:00:13]} Qc8 {[%clk 00:10:27]}
{[%emt 00:00:31]} 13. b4 {[%clk 00:12:44]} {[%emt 00:00:41]} axb4 {[%clk
00:10:14]} {[%emt 00:00:17]} 14. cxb4 {[%clk 00:12:45]} {[%emt 00:00:01]} Ba6
{[%clk 00:09:09]} {[%emt 00:01:08]} 15. Qb3 {[%clk 00:11:18]} {[%emt 00:01:30]}
d5 {[%clk 00:07:47]} {[%emt 00:01:24]} 16. b5 {[%clk 00:10:55]} {[%emt
00:00:27]} dxc4 {[%clk 00:06:51]} {[%emt 00:01:00]} 17. Bxc4 {[%clk 00:10:55]}
{[%emt 00:00:02]} Bb7 {[%clk 00:06:20]} {[%emt 00:00:34]} 18. Bxf7+ {[%emt
00:00:05]} Kg7 19. Rfc1 {[%clk 00:08:59]} {[%emt 00:01:56]} Bxf3 {[%clk
00:05:34]} {[%emt 00:00:52]} 20. gxf3 {[%clk 00:08:18]} {[%emt 00:00:44]} Qb7
{[%clk 00:05:16]} {[%emt 00:00:21]} 21. Bxe8 {[%clk 00:07:04]} {[%emt
00:01:18]} Rxe8 {[%clk 00:05:18]} {[%emt 00:00:02]} 22. e4 {[%clk 00:06:58]}
{[%emt 00:00:09]} Rc8 {[%clk 00:05:19]} {[%emt 00:00:01]} 23. d5 {[%clk
00:06:28]} {[%emt 00:00:32]} Nc5 {[%clk 00:05:13]} {[%emt 00:00:10]} 24. Qc3
{[%clk 00:06:18]} {[%emt 00:00:13]} Kg8 {[%clk 00:05:13]} {[%emt 00:00:04]} 25.
Be5 {[%clk 00:05:39]} {[%emt 00:00:40]} Bg7 {[%clk 00:05:11]} {[%emt 00:00:05]}
26. Bd4 {[%clk 00:05:25]} {[%emt 00:00:17]} Ncd7 {[%clk 00:04:02]} {[%emt
00:01:14]} 27. Ra2 {[%clk 00:05:05]} {[%emt 00:00:22]} Nxd5 {[%clk 00:03:07]}
{[%emt 00:00:58]} 28. exd5 {[%clk 00:04:28]} {[%emt 00:00:40]} Qxd5 {[%clk
00:02:58]} {[%emt 00:00:12]} 29. Qc4 {[%clk 00:03:38]} {[%emt 00:00:54]} Qxc4
{[%clk 00:01:54]} {[%emt 00:01:07]} 30. Rxc4 {[%emt 00:00:02]} Bxd4 31. Rxd4
{[%clk 00:03:36]} {[%emt 00:00:02]} Nc5 {[%clk 00:01:57]} 32. Rc4 {[%clk
00:03:11]} {[%emt 00:00:29]} Kf7 {[%clk 00:01:59]} 33. a5 {[%clk 00:03:04]}
{[%emt 00:00:09]} Ke6 {[%clk 00:01:59]} {[%emt 00:00:04]} 34. a6 {[%clk
00:02:53]} {[%emt 00:00:14]} Kd5 {[%clk 00:02:01]} 35. Rh4 {[%clk 00:02:51]}
{[%emt 00:00:05]} h5 {[%clk 00:02:03]} {[%emt 00:00:03]} 36. Rf4 {[%clk
00:02:52]} c6 {[%clk 00:01:44]} {[%emt 00:00:23]} 37. Rd2+ {[%clk 00:02:27]}
{[%emt 00:00:27]} Ke6 {[%clk 00:01:41]} {[%emt 00:00:06]} 38. Re2+ {[%clk
00:01:58]} {[%emt 00:00:33]} Kd6 {[%clk 00:01:38]} {[%emt 00:00:06]} 39. Rd4+
{[%clk 00:01:53]} {[%emt 00:00:07]} Kc7 {[%clk 00:01:40]} {[%emt 00:00:02]} 40.
Rxe7+ {[%clk 00:01:54]} {[%emt 00:00:02]} Kb8 {[%clk 00:01:42]} {[%emt
00:00:01]} 41. Rg7 {[%clk 00:01:32]} {[%emt 00:00:24]} cxb5 {[%clk 00:01:23]}
{[%emt 00:00:23]} 42. Rxg6 {[%clk 00:01:19]} {[%emt 00:00:16]} Ka7 {[%clk
00:00:55]} {[%emt 00:00:30]} 43. Rdd6 {[%emt 00:00:17]} Rb8 {[%emt 00:00:02]}
44. Rh6 {[%clk 00:00:57]} {[%emt 00:00:10]} Kxa6 {[%clk 00:00:55]} {[%emt
00:00:06]} 45. Rxh5 {[%clk 00:00:58]} {[%emt 00:00:03]} b4 {[%clk 00:00:57]} 46.
Rxc5 {[%emt 00:00:22]} 1-0

[Event "15. ročník Dobrovický rapid Tereos TTD a.s."]
[Site "Dobrovice, Czech Republic"]
[Date "2020.02.29"]
[Round "7.12"]
[White "Stursa Jan"]
[Black "Spirek Adam"]
[Result "1-0"]
[TimeControl "15m + 3s / tah"]
[WhiteElo "1943"]
[BlackElo "2015"]

1. c4 {[%clk 00:15:03]} {[%emt 00:17:06]} e5 {[%clk 00:15:04]} {[%emt
00:00:03]} 2. Nc3 {[%clk 00:15:02]} {[%emt 00:00:04]} f5 {[%clk 00:15:05]}
{[%emt 00:00:01]} 3. g3 {[%clk 00:15:03]} {[%emt 00:00:02]} Nf6 {[%clk
00:15:04]} {[%emt 00:00:04]} 4. Bg2 {[%clk 00:15:05]} {[%emt 00:00:02]} d6
{[%clk 00:15:00]} {[%emt 00:00:07]} 5. d3 {[%clk 00:14:59]} {[%emt 00:00:08]}
c6 {[%clk 00:14:54]} {[%emt 00:00:09]} 6. Nf3 {[%clk 00:14:46]} {[%emt
00:00:16]} Be7 {[%clk 00:14:47]} {[%emt 00:00:10]} 7. O-O {[%clk 00:14:38]}
{[%emt 00:00:11]} O-O {[%clk 00:14:48]} {[%emt 00:00:02]} 8. c5 {[%clk
00:13:40]} {[%emt 00:01:01]} Na6 {[%clk 00:13:38]} {[%emt 00:01:12]} 9. cxd6
{[%clk 00:13:10]} {[%emt 00:00:33]} Qxd6 {[%clk 00:13:34]} {[%emt 00:00:08]} 10.
a3 {[%clk 00:12:57]} {[%emt 00:00:16]} Kh8 {[%clk 00:13:17]} {[%emt 00:00:20]}
11. b4 {[%clk 00:12:41]} {[%emt 00:00:19]} Nc7 {[%clk 00:12:50]} {[%emt
00:00:29]} 12. Bb2 {[%clk 00:12:07]} {[%emt 00:00:38]} Be6 {[%clk 00:12:04]}
{[%emt 00:00:49]} 13. Rc1 {[%clk 00:10:48]} {[%emt 00:01:22]} a5 {[%clk
00:11:49]} {[%emt 00:00:19]} 14. Na4 {[%clk 00:10:00]} {[%emt 00:00:51]} axb4
{[%clk 00:10:38]} {[%emt 00:01:14]} 15. Bxe5 {[%clk 00:09:48]} {[%emt
00:00:15]} Qd8 {[%clk 00:10:34]} {[%emt 00:00:07]} 16. axb4 {[%clk 00:09:22]}
{[%emt 00:00:29]} Bxb4 {[%clk 00:10:01]} {[%emt 00:00:36]} 17. Nd4 {[%clk
00:08:48]} {[%emt 00:00:38]} Bg8 {[%clk 00:09:22]} {[%emt 00:00:42]} 18. Rb1
{[%clk 00:08:11]} {[%emt 00:00:39]} c5 {[%clk 00:08:36]} {[%emt 00:00:49]} 19.
Nxf5 {[%clk 00:07:49]} {[%emt 00:00:25]} Ncd5 {[%clk 00:06:37]} {[%emt
00:02:02]} 20. e4 {[%clk 00:05:29]} {[%emt 00:02:23]} Nb6 {[%clk 00:04:16]}
{[%emt 00:02:24]} 21. Nxb6 {[%clk 00:04:50]} {[%emt 00:00:42]} Qxb6 {[%clk
00:04:18]} {[%emt 00:00:01]} 22. d4 {[%clk 00:04:16]} {[%emt 00:00:37]} Rfd8
{[%clk 00:03:17]} {[%emt 00:01:04]} 23. d5 {[%clk 00:04:07]} {[%emt 00:00:12]}
Re8 {[%clk 00:03:00]} {[%emt 00:00:21]} 24. Bc3 {[%clk 00:03:31]} {[%emt
00:00:39]} Qa5 {[%clk 00:02:29]} {[%emt 00:00:34]} 25. Bxf6 {[%clk 00:03:24]}
{[%emt 00:00:09]} gxf6 {[%clk 00:02:27]} {[%emt 00:00:06]} 26. Qg4 {[%clk
00:03:12]} {[%emt 00:00:15]} Qc7 {[%clk 00:02:22]} {[%emt 00:00:08]} 27. Rfc1
{[%clk 00:02:56]} {[%emt 00:00:19]} Ba3 {[%clk 00:02:06]} {[%emt 00:00:19]} 28.
Rc3 {[%clk 00:02:34]} {[%emt 00:00:26]} c4 {[%clk 00:01:57]} {[%emt 00:00:12]}
29. Rxc4 {[%clk 00:02:25]} {[%emt 00:00:12]} Qf7 {[%clk 00:01:47]} {[%emt
00:00:13]} 30. Nd6 {[%clk 00:02:12]} {[%emt 00:00:16]} Bxd6 {[%clk 00:01:42]}
{[%emt 00:00:09]} 31. Rb6 {[%clk 00:01:23]} {[%emt 00:00:52]} Ra1+ {[%clk
00:01:31]} {[%emt 00:00:14]} 32. Bf1 {[%clk 00:01:25]} {[%emt 00:00:01]} Bb8
{[%clk 00:01:30]} {[%emt 00:00:04]} 33. Rcb4 {[%clk 00:01:25]} {[%emt
00:00:03]} Qg6 {[%clk 00:01:19]} {[%emt 00:00:14]} 34. Qxg6 {[%clk 00:01:04]}
{[%emt 00:00:23]} hxg6 {[%clk 00:01:21]} {[%emt 00:00:02]} 35. Rxb7 {[%clk
00:01:06]} {[%emt 00:00:01]} Be5 {[%clk 00:01:18]} {[%emt 00:00:05]} 36. f4
{[%clk 00:01:01]} {[%emt 00:00:08]} Bc3 {[%clk 00:01:12]} {[%emt 00:00:09]} 37.
Rc4 {[%clk 00:01:00]} {[%emt 00:00:04]} Bd2 {[%clk 00:01:10]} {[%emt 00:00:04]}
38. Kg2 {[%clk 00:00:45]} {[%emt 00:00:18]} f5 {[%clk 00:01:11]} {[%emt
00:00:03]} 39. Rc2 {[%clk 00:00:37]} {[%emt 00:00:11]} Be3 {[%clk 00:00:57]}
{[%emt 00:00:17]} 40. Rb3 {[%clk 00:00:31]} {[%emt 00:00:09]} Rxe4 {[%clk
00:00:56]} {[%emt 00:00:04]} 41. Rc8 {[%clk 00:00:28]} {[%emt 00:00:06]} Bd4
{[%clk 00:00:44]} {[%emt 00:00:15]} 42. Rbb8 {[%clk 00:00:24]} {[%emt
00:00:07]} Ra2+ {[%clk 00:00:33]} {[%emt 00:00:14]} 43. Kh3 {[%clk 00:00:25]}
{[%emt 00:00:02]} Re1 {[%clk 00:00:19]} {[%emt 00:00:16]} 44. Rxg8+ {[%clk
00:00:26]} {[%emt 00:00:02]} Kh7 {[%clk 00:00:22]} 45. Bc4 {[%clk 00:00:19]}
{[%emt 00:00:10]} Rh1 {[%clk 00:00:12]} {[%emt 00:00:13]} 46. Bxa2 {[%emt
00:00:15]} 1-0

[Event "15. ročník Dobrovický rapid Tereos TTD a.s."]
[Site "Dobrovice, Czech Republic"]
[Date "2020.02.29"]
[Round "7.13"]
[White "Pirvulescu Adrian"]
[Black "Nedoma Marek"]
[Result "0-1"]
[TimeControl "15m + 3s / tah"]
[WhiteElo "1829"]
[BlackElo "2003"]

1. e4 {[%clk 00:15:05]} c5 {[%clk 00:14:52]} {[%emt 00:00:14]} 2. Nc3 {[%clk
00:15:07]} e6 {[%clk 00:14:44]} {[%emt 00:00:11]} 3. f4 {[%clk 00:15:09]} Nc6
{[%clk 00:14:39]} {[%emt 00:00:09]} 4. Nf3 {[%clk 00:15:11]} a6 {[%clk
00:14:39]} {[%emt 00:00:04]} 5. d4 {[%clk 00:15:03]} {[%emt 00:00:11]} cxd4
{[%clk 00:14:35]} {[%emt 00:00:09]} 6. Nxd4 {[%clk 00:15:04]} {[%emt 00:00:01]}
Nge7 {[%clk 00:14:19]} {[%emt 00:00:19]} 7. Nxc6 {[%clk 00:13:31]} {[%emt
00:01:36]} bxc6 {[%clk 00:13:09]} {[%emt 00:01:12]} 8. Be3 {[%clk 00:12:54]}
{[%emt 00:00:40]} d5 {[%clk 00:12:53]} {[%emt 00:00:20]} 9. Bc5 {[%clk
00:12:18]} {[%emt 00:00:39]} Ng6 {[%clk 00:10:58]} {[%emt 00:01:58]} 10. Bxf8
{[%clk 00:12:16]} {[%emt 00:00:05]} Nxf8 {[%clk 00:11:00]} {[%emt 00:00:02]} 11.
Qd4 {[%clk 00:11:39]} {[%emt 00:00:40]} f6 {[%clk 00:09:22]} {[%emt 00:01:41]}
12. O-O-O {[%clk 00:10:45]} {[%emt 00:00:56]} Nd7 {[%clk 00:08:45]} {[%emt
00:00:40]} 13. Qb4 {[%clk 00:08:45]} {[%emt 00:02:03]} c5 {[%clk 00:08:02]}
{[%emt 00:00:46]} 14. Qa4 {[%clk 00:08:22]} {[%emt 00:00:26]} d4 {[%clk
00:07:45]} {[%emt 00:00:20]} 15. Nb5 {[%clk 00:07:22]} {[%emt 00:01:03]} O-O
{[%clk 00:07:44]} {[%emt 00:00:01]} 16. Nd6 {[%clk 00:07:25]} Qc7 {[%clk
00:07:37]} {[%emt 00:00:13]} 17. Nxc8 {[%clk 00:06:57]} {[%emt 00:00:31]} Rfxc8
{[%clk 00:07:26]} {[%emt 00:00:14]} 18. g3 {[%clk 00:06:19]} {[%emt 00:00:41]}
Nb6 {[%clk 00:07:19]} {[%emt 00:00:10]} 19. Qa5 {[%clk 00:05:55]} {[%emt
00:00:27]} Qc6 {[%clk 00:07:01]} {[%emt 00:00:21]} 20. Bg2 {[%clk 00:05:32]}
{[%emt 00:00:26]} Nc4 {[%clk 00:06:52]} {[%emt 00:00:12]} 21. Qe1 {[%clk
00:05:08]} {[%emt 00:00:28]} Ne3 {[%clk 00:06:52]} {[%emt 00:00:02]} 22. Rd2
{[%clk 00:05:04]} {[%emt 00:00:07]} Qa4 {[%clk 00:06:49]} {[%emt 00:00:05]} 23.
Kb1 {[%clk 00:04:08]} {[%emt 00:01:00]} Rab8 {[%clk 00:06:45]} {[%emt
00:00:07]} 24. Bh3 {[%clk 00:02:56]} {[%emt 00:01:15]} Rb6 {[%clk 00:05:11]}
{[%emt 00:01:36]} 25. b3 {[%clk 00:02:51]} {[%emt 00:00:08]} Qc6 {[%clk
00:04:28]} {[%emt 00:00:46]} 26. e5 {[%clk 00:02:00]} {[%emt 00:00:55]} f5
{[%clk 00:04:08]} {[%emt 00:00:23]} 27. Rg1 {[%clk 00:01:45]} {[%emt 00:00:18]}
a5 {[%clk 00:03:29]} {[%emt 00:00:42]} 28. Bg2 {[%clk 00:01:07]} {[%emt
00:00:41]} Qc7 {[%clk 00:03:31]} {[%emt 00:00:01]} 29. a4 {[%clk 00:00:52]}
{[%emt 00:00:17]} Qd7 {[%clk 00:03:18]} {[%emt 00:00:15]} 30. Ka2 {[%clk
00:00:54]} {[%emt 00:00:02]} c4 {[%clk 00:03:19]} {[%emt 00:00:02]} 31. Qxe3
{[%clk 00:00:47]} {[%emt 00:00:10]} dxe3 {[%clk 00:01:47]} {[%emt 00:01:35]} 32.
Rxd7 {[%clk 00:00:49]} {[%emt 00:00:01]} cxb3+ {[%clk 00:01:42]} {[%emt
00:00:07]} 33. cxb3 {[%clk 00:00:45]} {[%emt 00:00:07]} Rc2+ {[%clk 00:01:34]}
{[%emt 00:00:11]} 34. Ka3 {[%clk 00:00:25]} {[%emt 00:00:23]} Rc3 {[%clk
00:01:30]} {[%emt 00:00:07]} 35. Rgd1 {[%clk 00:00:05]} {[%emt 00:00:23]}
Rcxb3+ {[%emt 00:00:26]} 36. Ka2 Rb2+ {[%clk 00:01:08]} {[%emt 00:00:02]} 37.
Ka1 {[%clk 00:00:10]} Rxg2 {[%clk 00:00:45]} {[%emt 00:00:26]} 38. Ra7 {[%clk
00:00:12]} Rb8 {[%clk 00:00:11]} {[%emt 00:00:37]} 39. Rdd7 {[%clk 00:00:11]}
{[%emt 00:00:04]} Rg1+ {[%clk 00:00:12]} {[%emt 00:00:02]} 40. Ka2 {[%clk
00:00:13]} {[%emt 00:00:01]} Rg2+ {[%clk 00:00:14]} {[%emt 00:00:01]} 41. Ka1
{[%clk 00:00:15]} {[%emt 00:00:01]} Rxh2 {[%clk 00:00:16]} 42. Rxg7+ {[%emt
00:00:01]} Kh8 43. Rab7 {[%clk 00:00:05]} {[%emt 00:00:15]} Rxb7 {[%clk
00:00:16]} {[%emt 00:00:06]} 44. Rxb7 {[%clk 00:00:07]} {[%emt 00:00:01]} e2
{[%clk 00:00:16]} {[%emt 00:00:02]} 45. Rb8+ {[%clk 00:00:06]} {[%emt
00:00:04]} Kg7 {[%clk 00:00:18]} 46. Rb7+ {[%clk 00:00:08]} {[%emt 00:00:01]}
Kg6 {[%clk 00:00:20]} 47. Rb1 {[%clk 00:00:08]} {[%emt 00:00:03]} Rf2 {[%clk
00:00:21]} {[%emt 00:00:02]} 48. Ka2 {[%clk 00:00:00]} {[%emt 00:00:08]} 0-1

[Event "15. ročník Dobrovický rapid Tereos TTD a.s."]
[Site "Dobrovice, Czech Republic"]
[Date "2020.02.29"]
[Round "7.14"]
[White "Danek Pavel"]
[Black "Pesek Radomir"]
[Result "0-1"]
[TimeControl "15m + 3s / tah"]
[WhiteElo "1844"]
[BlackElo "1999"]

1. d4 {[%clk 00:15:04]} Nf6 {[%clk 00:15:05]} {[%emt 00:00:02]} 2. Nf3 {[%clk
00:15:06]} {[%emt 00:00:01]} d5 {[%clk 00:15:05]} {[%emt 00:00:03]} 3. Bg5
{[%clk 00:15:06]} {[%emt 00:00:02]} e6 {[%clk 00:15:06]} {[%emt 00:00:01]} 4.
Nbd2 {[%clk 00:15:08]} {[%emt 00:00:01]} Be7 {[%clk 00:15:01]} {[%emt
00:00:08]} 5. e3 {[%clk 00:15:10]} {[%emt 00:00:02]} O-O {[%clk 00:15:01]}
{[%emt 00:00:02]} 6. Bd3 {[%clk 00:15:12]} h6 {[%clk 00:15:02]} {[%emt
00:00:03]} 7. Bh4 {[%clk 00:15:14]} Nbd7 {[%clk 00:15:02]} {[%emt 00:00:03]} 8.
c3 {[%clk 00:15:13]} {[%emt 00:00:05]} c5 {[%clk 00:15:04]} {[%emt 00:00:01]} 9.
O-O {[%clk 00:15:12]} {[%emt 00:00:04]} c4 {[%clk 00:15:02]} {[%emt 00:00:05]}
10. Bc2 {[%clk 00:15:08]} {[%emt 00:00:07]} b5 {[%clk 00:14:51]} {[%emt
00:00:14]} 11. e4 {[%clk 00:14:53]} {[%emt 00:00:18]} dxe4 {[%clk 00:14:48]}
{[%emt 00:00:06]} 12. Nxe4 {[%clk 00:14:55]} {[%emt 00:00:01]} Nxe4 {[%clk
00:14:50]} {[%emt 00:00:02]} 13. Bxe7 {[%clk 00:14:22]} {[%emt 00:00:35]} Qxe7
{[%clk 00:14:34]} {[%emt 00:00:18]} 14. Bxe4 {[%clk 00:14:08]} {[%emt
00:00:17]} Rb8 {[%clk 00:14:36]} {[%emt 00:00:01]} 15. Nd2 {[%clk 00:10:38]}
{[%emt 00:03:32]} Nf6 {[%clk 00:14:38]} {[%emt 00:00:02]} 16. Bf3 {[%clk
00:10:24]} {[%emt 00:00:16]} Bb7 {[%clk 00:14:32]} {[%emt 00:00:09]} 17. a3
{[%clk 00:10:10]} {[%emt 00:00:18]} Rfd8 {[%clk 00:14:07]} {[%emt 00:00:27]} 18.
Qe2 {[%clk 00:09:56]} {[%emt 00:00:17]} Bd5 {[%clk 00:14:00]} {[%emt 00:00:10]}
19. Rfe1 {[%clk 00:09:28]} {[%emt 00:00:31]} Qb7 {[%clk 00:13:45]} {[%emt
00:00:17]} 20. Ne4 {[%clk 00:08:58]} {[%emt 00:00:34]} Nxe4 {[%clk 00:13:12]}
{[%emt 00:00:36]} 21. Bxe4 {[%clk 00:09:00]} {[%emt 00:00:02]} a5 {[%clk
00:12:35]} {[%emt 00:00:39]} 22. f4 {[%clk 00:08:01]} {[%emt 00:01:02]} b4
{[%clk 00:12:12]} {[%emt 00:00:26]} 23. axb4 {[%clk 00:07:51]} {[%emt
00:00:14]} axb4 {[%clk 00:12:14]} {[%emt 00:00:01]} 24. Bxd5 {[%clk 00:07:24]}
{[%emt 00:00:30]} Qxd5 {[%clk 00:12:12]} {[%emt 00:00:05]} 25. Ra7 {[%clk
00:06:18]} {[%emt 00:01:09]} bxc3 {[%clk 00:10:57]} {[%emt 00:01:18]} 26. bxc3
{[%clk 00:06:18]} {[%emt 00:00:04]} Rb3 {[%clk 00:10:24]} {[%emt 00:00:35]} 27.
Rc1 {[%clk 00:03:24]} {[%emt 00:02:57]} Rdb8 {[%clk 00:10:24]} {[%emt
00:00:03]} 28. Rc2 {[%clk 00:02:17]} {[%emt 00:01:10]} Qf5 {[%clk 00:09:51]}
{[%emt 00:00:35]} 29. g3 {[%clk 00:01:17]} {[%emt 00:01:04]} Qd5 {[%clk
00:07:12]} {[%emt 00:02:41]} 30. Rc7 {[%clk 00:01:09]} {[%emt 00:00:11]} Rb1+
{[%clk 00:07:05]} {[%emt 00:00:10]} 31. Kf2 {[%clk 00:00:45]} {[%emt 00:00:27]}
Qh1 {[%clk 00:07:03]} {[%emt 00:00:05]} 32. g4 {[%clk 00:00:05]} {[%emt
00:00:44]} Qg1+ {[%clk 00:06:49]} {[%emt 00:00:15]} 33. Kf3 {[%clk 00:00:06]}
{[%emt 00:00:03]} Rf1+ {[%clk 00:06:48]} {[%emt 00:00:03]} 34. Ke4 {[%clk
00:00:07]} {[%emt 00:00:03]} Re1 {[%clk 00:06:50]} {[%emt 00:00:01]} 35. f5
{[%clk 00:00:04]} {[%emt 00:00:06]} Rxe2+ {[%clk 00:06:51]} 36. Rxe2 {[%clk
00:00:06]} {[%emt 00:00:01]} Qxg4+ {[%clk 00:06:48]} {[%emt 00:00:06]} 37. Ke3
{[%clk 00:00:08]} {[%emt 00:00:01]} Qxf5 {[%clk 00:06:33]} {[%emt 00:00:18]} 38.
Rf2 {[%clk 00:00:10]} {[%emt 00:00:02]} Qg5+ {[%clk 00:06:29]} {[%emt
00:00:06]} 39. Ke4 {[%clk 00:00:12]} {[%emt 00:00:02]} Rf8 {[%clk 00:06:30]}
{[%emt 00:00:02]} 40. Rf4 {[%clk 00:00:12]} {[%emt 00:00:04]} Qg2+ {[%clk
00:06:24]} {[%emt 00:00:08]} 41. Ke3 {[%clk 00:00:14]} {[%emt 00:00:02]} Qxh2
{[%clk 00:06:18]} {[%emt 00:00:08]} 42. Rxc4 {[%clk 00:00:15]} {[%emt
00:00:02]} h5 {[%clk 00:06:13]} {[%emt 00:00:09]} 43. Rc7 {[%clk 00:00:14]}
{[%emt 00:00:04]} h4 {[%clk 00:06:14]} {[%emt 00:00:02]} 44. c4 {[%clk
00:00:07]} {[%emt 00:00:10]} g5 {[%clk 00:06:12]} {[%emt 00:00:05]} 0-1

[ePGN "0.1;DGT LiveChess/2.2.5"]